bitfinex/quotes_ETHUSD_20250705
["timestamp","ask_amount","ask_price","bid_price","bid_amount"]
[1751723660689,25.59132927,2518.4,2518.3,0.04554209]
[1751723660840,25.55121972,2518.4,2518.3,0.04554209]
[1751723662562,34.39274735,2518.4,2518.3,0.04554209]
[1751723663842,3.97172134,2517.8,2517.7,0.0435421]
[1751723664042,13.22324326,2517.8,2517.7,0.0435421]
[1751723664247,13.1835936,2517.8,2517.7,0.0435421]
[1751723664488,13.39080874,2517.8,2517.7,0.0435421]
[1751723664665,33.29780874,2517.8,2517.7,0.0435421]
[1751723664975,38.01845377,2517.8,2517.7,0.0435421]
[1751723669382,42.20145377,2517.8,2517.7,0.0435421]
[1751723669550,38.01845377,2517.8,2517.7,0.0435421]
[1751723669750,38.01702806,2517.8,2517.7,0.0435421]
[1751723671251,37.64810914,2517.8,2517.7,0.0435421]
[1751723671555,38.0168938,2517.8,2517.7,0.0435421]
[1751723675658,38.01679165,2517.8,2517.7,0.0435421]
[1751723676483,28.10979165,2517.8,2517.7,0.0435421]
[1751723676784,28.63426402,2517.8,2517.7,0.0435421]
[1751723677361,18.71826402,2517.8,2517.7,0.0435421]
[1751723677660,28.63426402,2517.8,2517.7,0.0435421]
[1751723678286,18.71826402,2517.8,2517.7,0.0435421]
[1751723678464,28.63926402,2517.8,2517.7,0.0435421]
[1751723678657,28.27058151,2517.8,2517.7,0.0435421]
[1751723678965,28.63941591,2517.8,2517.7,0.0435421]
[1751723679173,28.63941605,2517.8,2517.7,0.0435421]
[1751723680192,27.81791605,2517.8,2517.7,0.0435421]
[1751723683681,36.65944368,2517.8,2517.7,0.0435421]
[1751723684859,36.66004976,2517.8,2517.7,0.0435421]
[1751723685280,37.21017718,2517.8,2517.7,0.0435421]
[1751723685485,38.03557718,2517.8,2517.7,0.0435421]
[1751723700814,38.03257718,2517.8,2517.7,0.0435421]
[1751723702039,37.66300914,2517.8,2517.7,0.0435421]
[1751723705830,14.52187909,2517.7,2517.6,0.002]
[1751723706018,25.08313855,2517.7,2517.6,0.002]
[1751723706926,25.84753855,2517.7,2517.6,0.002]
[1751723708602,17.86453855,2517.7,2517.6,0.002]
[1751723708811,28.1511286,2517.7,2517.6,0.002]
[1751723710139,18.2351286,2517.7,2517.6,0.002]
[1751723710327,36.22825623,2517.7,2517.6,0.002]
[1751723711811,36.23025623,2517.7,2517.6,0.002]
[1751723713639,26.8387286,2517.7,2517.6,0.002]
[1751723716559,12.30359005,2517.7,2517.6,0.7836]
[1751723716710,0.37059005,2517.7,2517.6,0.7836]
[1751723717435,0.37059005,2517.7,2517.6,4.75563686]
[1751723718931,0.37059005,2517.7,2517.6,0.7836]
[1751723720948,0.37059005,2517.7,2517.6,4.75563686]
[1751723721856,0.37059005,2517.7,2517.6,0.7836]
[1751723723136,0.37015542,2517.7,2517.6,0.7836]
[1751723727981,0.37027819,2517.7,2517.6,0.7836]
[1751723728636,0.37027819,2517.7,2517.6,4.75563686]
[1751723728970,0.37027819,2517.7,2517.6,0.7836]
[1751723732376,0.37023134,2517.7,2517.6,0.7836]
[1751723733781,0.37022209,2517.7,2517.6,0.7836]
[1751723734476,0.37022209,2517.7,2517.6,4.75563686]
[1751723735180,0.37022209,2517.7,2517.6,0.7836]
[1751723735362,0.37024023,2517.7,2517.6,0.7836]
[1751723737955,0.40988989,2517.7,2517.6,0.7836]
[1751723738974,0.37024023,2517.7,2517.6,0.7836]
[1751723739467,0.2468648,2517.8,2517.6,0.7836]
[1751723739672,0.37071678,2517.7,2517.6,0.7836]
[1751723743178,0.37071678,2517.7,2517.6,0.002]
[1751723743676,0.748,2517.6,2517.5,0.002]
[1751723743878,1.11871678,2517.6,2517.5,0.002]
[1751723744646,1.11871678,2517.6,2517.5,3.97419463]
[1751723746274,1.11871678,2517.6,2517.5,0.002]
[1751723751887,1.11871678,2517.6,2517.5,3.97419463]
[1751723752896,1.11871678,2517.6,2517.5,0.002]
[1751723753079,0.748,2517.6,2517.5,0.002]
[1751723753290,1.11958893,2517.6,2517.5,0.002]
[1751723757392,1.12058893,2517.6,2517.5,0.002]
[1751723759694,1.12058893,2517.6,2517.5,3.97419463]
[1751723761400,1.12058893,2517.6,2517.5,0.002]
[1751723761588,1.12058893,2517.6,2517.5,3.97419463]
[1751723761796,1.12058893,2517.6,2517.5,4.79789463]
[1751723765308,1.12058893,2517.6,2517.5,5.71463355]
[1751723765677,1.12058893,2517.6,2517.5,5.67491161]
[1751723769778,1.12067254,2517.6,2517.5,5.67491161]
[1751723777028,1.12067254,2517.6,2517.5,4.79789463]
[1751723777212,1.12067254,2517.6,2517.5,3.97419463]
[1751723783537,1.12067254,2517.6,2517.5,4.72519463]
[1751723784126,1.12067254,2517.6,2517.5,4.76491657]
[1751723785738,1.12067254,2517.6,2517.5,4.72519463]
[1751723785950,1.12067254,2517.6,2517.5,5.22486118]
[1751723787833,1.12067254,2517.6,2517.5,5.26458312]
[1751723788354,1.12067254,2517.6,2517.5,5.22486118]
[1751723788646,1.12067254,2517.6,2517.5,5.26458312]
[1751723791861,1.12051394,2517.6,2517.5,5.26458312]
[1751723793652,1.12051394,2517.6,2517.5,5.22486118]
[1751723794060,1.12051394,2517.6,2517.5,4.47386118]
[1751723794361,1.12051394,2517.6,2517.5,3.97419463]
[1751723797577,1.12080866,2517.6,2517.5,3.97419463]
[1751723801364,1.12080866,2517.6,2517.5,4.17259463]
[1751723802471,1.12080866,2517.6,2517.5,0.2004]
[1751723802845,1.12080866,2517.6,2517.5,4.17259463]
[1751723808352,1.12084122,2517.6,2517.5,4.17259463]
[1751723811379,1.12097943,2517.6,2517.5,4.17259463]
[1751723822179,1.12096874,2517.6,2517.5,4.17259463]
[1751723825201,0.749,2517.6,2517.5,4.17259463]
[1751723825366,1.12100351,2517.6,2517.5,4.17259463]
[1751723829014,1.12100351,2517.6,2517.5,12.14959463]
[1751723831611,1.12100351,2517.6,2517.5,13.84166625]
[1751723831794,1.12100351,2517.6,2517.5,14.60696625]
[1751723838730,0.749,2517.6,2517.5,14.60696625]
[1751723839896,0.749,2517.6,2517.5,21.03755367]
[1751723849444,0.749,2517.6,2517.5,21.58755367]
[1751723854950,0.20711485,2518.2,2518.1,3.97124816]
[1751723855153,0.001,2518.3,2518.2,3.97109046]
[1751723858147,0.37232875,2518.3,2518.2,3.97109046]
[1751723860028,0.001,2518.3,2518.2,3.97109046]
[1751723860219,0.001,2518.3,2518.2,6.62286069]
[1751723862850,0.8259,2518.3,2518.2,6.62286069]
[1751723863047,0.8259,2518.3,2517.6,2.55598753]
[1751723863239,1.06394966,2518.3,2518.0,3.97131618]
[1751723863435,1.06394966,2518.3,2517.8,4.17001431]
[1751723863436,0.8249,2518.1,2517.8,3.97171838]
[1751723863639,0.8249,2518.1,2517.9,7.975]
[1751723863640,0.56940894,2518.0,2517.9,7.975]
[1751723863832,1.39430894,2518.0,2517.8,11.94771838]
[1751723864032,0.37100894,2517.9,2517.8,11.94771838]
[1751723865350,0.37100894,2517.9,2517.8,3.97171838]
[1751723865550,0.37100894,2517.9,2517.8,11.94771838]
[1751723869259,0.37100894,2517.9,2517.8,13.55951563]
[1751723869446,0.37100894,2517.9,2517.8,13.75791563]
[1751723871229,0.8058,2518.2,2518.0,3.97140587]
[1751723871429,0.37100767,2518.1,2518.0,11.98911992]
[1751723871656,0.37100767,2518.1,2518.0,12.14780587]
[1751723873563,0.8058,2518.2,2518.1,3.97124816]
[1751723873861,1.1768348,2518.2,2518.1,3.97124816]
[1751723875762,1.38394788,2518.2,2518.1,3.97124816]
[1751723876464,1.38397876,2518.2,2518.1,3.97124816]
[1751723880085,0.57817876,2518.2,2518.1,5.98030723]
[1751723880370,0.20711308,2518.2,2518.1,6.17870723]
[1751723889695,0.20711308,2518.2,2518.1,6.07870723]
[1751723889989,0.20711308,2518.2,2518.1,4.06964816]
[1751723892692,0.20811308,2518.2,2518.1,4.06964816]
[1751723898202,0.57943775,2518.2,2518.1,4.06964816]
[1751723899111,0.57943774,2518.2,2518.1,12.04664816]
[1751723910906,0.20811308,2518.2,2518.1,12.04664816]
[1751723911111,0.58008954,2518.2,2518.1,12.04664816]
[1751723913804,0.58008954,2518.2,2518.1,0.1984]
[1751723914009,0.58008954,2518.2,2518.1,12.14464816]
[1751723915912,0.58008954,2518.2,2518.1,11.94624816]
[1751723920693,0.58008954,2518.2,2518.1,7.975]
[1751723921541,0.58008954,2518.2,2518.1,11.94624816]
[1751723923133,0.58008954,2518.2,2518.1,3.97124816]
[1751723923335,0.58008954,2518.2,2518.1,11.94524816]
[1751723924837,0.58008954,2518.2,2518.1,7.974]
[1751723925341,0.58008954,2518.2,2518.1,11.94524816]
[1751723931741,0.57956466,2518.2,2518.1,11.94524816]
[1751723933524,0.57957289,2518.2,2518.1,11.94524816]
[1751723934542,0.5795806,2518.2,2518.1,11.94524816]
[1751723938737,0.20811308,2518.2,2518.1,11.94524816]
[1751723938944,0.57958654,2518.2,2518.1,11.94524816]
[1751723940635,0.57963982,2518.2,2518.1,11.94524816]
[1751723942518,0.57971431,2518.2,2518.1,11.94524816]
[1751723945563,0.57984454,2518.2,2518.1,11.94524816]
[1751723945731,0.57984464,2518.2,2518.1,11.94524816]
[1751723948861,0.57984461,2518.2,2518.1,11.94524816]
[1751723960290,1.37334461,2518.2,2518.0,3.97334568]
[1751723960494,1.00161308,2518.2,2518.1,7.974]
[1751723960793,1.37332763,2518.2,2518.1,7.974]
[1751723960952,1.37332763,2518.2,2518.1,11.94524816]
[1751723961781,1.37332763,2518.2,2518.1,7.974]
[1751723962760,2.17364419,2518.2,2518.1,7.974]
[1751723965589,1.38014419,2518.2,2518.1,7.974]
[1751723970403,1.38001559,2518.2,2518.1,7.974]
[1751723972192,1.38001559,2518.2,2518.0,0.002]
[1751723972193,1.38001559,2518.2,2518.0,7.976]
[1751723972396,0.37158595,2518.1,2518.0,7.976]
[1751723972602,0.37158904,2518.1,2518.0,7.976]
[1751723976603,0.37158904,2518.1,2518.0,0.002]
[1751723976769,0.37158904,2518.1,2518.0,7.976]
[1751723989903,0.37158904,2518.1,2518.0,0.002]
[1751723990105,0.37158904,2518.1,2518.0,7.976]
[1751723990509,0.37163836,2518.1,2518.0,0.002]
[1751723990706,1.04903075,2518.1,2518.0,0.002]
[1751723990879,1.08868041,2518.1,2518.0,0.002]
[1751723996911,1.04903075,2518.1,2518.0,0.002]
[1751724000821,0.57003836,2518.1,2518.0,3.97340587]
[1751724001124,0.37163836,2518.1,2518.0,4.78370587]
[1751724001643,0.37163836,2518.1,2518.0,12.79741992]
[1751724001819,0.37163836,2518.1,2518.0,12.95610587]
[1751724002577,0.37163836,2518.1,2518.0,19.38654382]
[1751724002689,0.37163836,2518.1,2518.0,21.72235375]
[1751724002893,0.001,2518.2,2518.1,3.97124816]
[1751724003104,0.001,2518.2,2518.1,4.77424816]
[1751724003105,0.37239359,2518.2,2518.1,4.77424816]
[1751724003302,0.37239359,2518.2,2518.1,4.97264816]
[1751724003505,0.001,2518.2,2518.1,5.01236064]
[1751724003843,0.001,2518.2,2518.1,7.94240515]
[1751724005698,0.001,2518.2,2518.1,14.3728431]
[1751724008650,0.001,2518.2,2518.1,7.94240515]
[1751724035306,0.001,2518.2,2518.1,14.9228431]
[1751724038061,0.001,2518.2,2518.1,14.8728431]
[1751724040888,0.001,2518.2,2518.1,7.08940515]
[1751724041057,0.001,2518.2,2518.1,12.09164816]
[1751724042990,0.001,2518.2,2518.1,12.04164816]
[1751724060007,0.001,2518.2,2518.1,12.83104816]
[1751724060583,0.001,2518.2,2518.1,29.81148611]
[1751724065014,0.001,2518.2,2518.1,23.38104816]
[1751724066311,0.001,2518.2,2518.1,27.15669291]
[1751724066685,0.20708169,2518.7,2518.5,0.7894]
[1751724066989,0.7786,2519.0,2518.9,3.96998689]
[1751724067188,1.1502337,2519.0,2518.9,11.94098689]
[1751724067417,1.1502337,2519.0,2518.9,12.13938689]
[1751724068588,0.3716337,2519.0,2518.9,12.13938689]
[1751724070618,0.98564664,2519.2,2519.1,3.9696717]
[1751724070917,2.48360416,2519.2,2519.1,11.9406717]
[1751724071285,2.48360416,2519.2,2519.1,7.971]
[1751724074322,1.74465382,2519.2,2518.9,0.1984]
[1751724074520,6.80167163,2519.1,2519.0,7.97]
[1751724074693,8.07996254,2519.1,2519.0,7.97]
[1751724074894,0.754,2519.0,2518.9,8.1684]
[1751724075094,1.12523368,2519.0,2518.9,8.1684]
[1751724075520,1.16488334,2519.0,2518.9,7.97]
[1751724075724,0.754,2518.9,2518.8,7.97]
[1751724075890,8.85588748,2518.9,2518.6,3.97033381]
[1751724076221,1.12523368,2518.8,2518.6,11.94033381]
[1751724076522,0.79364966,2518.8,2518.7,7.97]
[1751724076724,1.16473775,2518.8,2518.7,7.97]
[1751724078012,1.12508809,2518.8,2518.6,7.97]
[1751724078215,0.37108809,2518.7,2518.6,7.97]
[1751724079736,0.37108809,2518.7,2518.6,11.94045977]
[1751724081053,0.37108809,2518.7,2518.6,3.97045977]
[1751724081218,0.37108809,2518.7,2518.6,11.94045977]
[1751724084752,0.754,2518.8,2518.7,3.97030213]
[1751724085054,1.12519134,2518.8,2518.7,3.97030213]
[1751724087369,1.33226914,2518.8,2518.7,3.97030213]
[1751724094367,0.9610778,2518.8,2518.7,3.97030213]
[1751724094572,1.33240514,2518.8,2518.7,3.97030213]
[1751724095173,1.33240514,2518.8,2518.6,11.94037471]
[1751724095471,0.37132734,2518.7,2518.6,11.94037471]
[1751724096571,0.37132734,2518.7,2518.5,0.1984]
[1751724096777,0.37133636,2518.6,2518.5,0.1984]
[1751724096986,0.37133636,2518.6,2518.5,4.16901743]
[1751724101678,0.37138383,2518.6,2518.5,4.16901743]
[1751724106392,0.9610778,2518.8,2518.6,3.97032022]
[1751724106572,0.37158388,2518.7,2518.6,3.97032022]
[1751724117993,0.37158388,2518.7,2518.6,6.67017556]
[1751724118577,0.37158388,2518.7,2518.6,14.64017556]
[1751724118777,0.37158388,2518.7,2518.6,14.60047097]
[1751724126219,0.23804966,2519.1,2518.8,3.97002774]
[1751724126420,0.37130898,2519.0,2518.9,3.96996065]
[1751724129331,0.7678,2518.9,2518.8,3.97004188]
[1751724129535,1.13910898,2518.9,2518.8,3.97004188]
[1751724130211,1.13910898,2518.9,2518.7,3.97016313]
[1751724130407,0.37130898,2518.8,2518.7,3.97016313]
[1751724133936,0.37130898,2518.8,2518.6,3.97037753]
[1751724134141,0.37130898,2518.7,2518.6,3.97037753]
[1751724135018,0.7678,2518.9,2518.7,3.97016938]
[1751724135338,0.3712887,2518.8,2518.7,3.97016938]
[1751724137335,0.3712887,2518.8,2518.6,3.97039364]
[1751724137539,0.7678,2518.9,2518.7,3.97030213]
[1751724137840,0.37133886,2518.8,2518.7,3.97030213]
[1751724138944,0.37136211,2518.8,2518.7,3.97030213]
[1751724139112,0.57844919,2518.8,2518.7,3.97030213]
[1751724142173,0.57855026,2518.8,2518.7,3.97030213]
[1751724144942,0.57865929,2518.8,2518.7,3.97030213]
[1751724149876,0.57865929,2518.8,2518.7,5.56125832]
[1751724150075,0.57865929,2518.8,2518.7,5.75965832]
[1751724151580,0.57865929,2518.8,2518.7,6.60426134]
[1751724151780,0.57865929,2518.8,2518.7,6.56455832]
[1751724151981,0.57865929,2518.8,2518.7,6.60426134]
[1751724152275,0.57865929,2518.8,2518.7,14.57326134]
[1751724152477,0.57865929,2518.8,2518.7,14.53355832]
[1751724153350,0.37157221,2518.8,2518.7,14.53355832]
[1751724155858,0.359171,2518.8,2518.7,14.53355832]
[1751724156691,0.99554443,2519.2,2519.0,3.9696944]
[1751724157188,0.03964966,2519.1,2518.9,3.96990591]
[1751724159998,1.19394443,2519.2,2519.0,3.96982929]
[1751724161699,1.19394443,2519.2,2518.9,3.96992035]
[1751724161867,0.7603,2519.0,2518.8,0.1984]
[1751724162187,0.7603,2518.8,2518.6,3.97038843]
[1751724162401,9.59700632,2518.8,2518.5,0.1984]
[1751724162608,0.03964966,2518.7,2518.0,2.7381]
[1751724162761,9.59700632,2518.5,2518.2,0.1984]
[1751724162959,0.03964966,2518.4,2518.2,0.1984]
[1751724163589,0.03964966,2518.4,2518.1,3.97119807]
[1751724163796,0.23804966,2518.4,2518.0,4.17173307]
[1751724163990,0.23804966,2518.4,2518.1,3.97124318]
[1751724165395,0.23804966,2518.4,2518.2,3.9710803]
[1751724165701,0.1984,2518.4,2518.2,3.9710803]
[1751724167000,0.1984,2518.4,2518.2,3.97106718]
[1751724167998,0.37056487,2518.3,2518.2,3.97106718]
[1751724169199,0.37056487,2518.3,2518.2,4.78533769]
[1751724170007,0.37056487,2518.3,2518.2,4.98373769]
[1751724170207,1.02224966,2518.7,2518.5,3.97061743]
[1751724170413,0.37037413,2518.6,2518.5,3.97061743]
[1751724171469,0.37033684,2518.6,2518.5,3.97061743]
[1751724172381,0.37033684,2518.8,2518.7,3.97030213]
[1751724172583,0.37038224,2518.8,2518.7,3.97030213]
[1751724173904,0.57745778,2518.8,2518.7,3.97030213]
[1751724174308,0.57747182,2518.8,2518.7,5.01890515]
[1751724174607,0.40544485,2519.1,2519.0,3.96982929]
[1751724174808,0.77585635,2519.1,2519.0,3.96982929]
[1751724177001,0.57745635,2519.1,2519.0,3.96982929]
[1751724178473,0.57745635,2519.1,2518.8,0.1984]
[1751724178474,0.57745635,2519.1,2518.9,3.96987541]
[1751724178700,0.37038921,2519.0,2518.9,3.96987541]
[1751724179489,0.20704485,2519.1,2519.0,3.96982929]
[1751724179786,0.57741979,2519.1,2519.0,3.96982929]
[1751724180505,0.57741979,2519.1,2518.9,3.96989788]
[1751724180709,0.20704485,2519.1,2518.9,3.96989788]
[1751724184891,0.20704485,2519.1,2519.0,3.96982929]
[1751724185091,0.57737508,2519.1,2519.0,3.96982929]
[1751724188020,0.57742878,2519.1,2519.0,3.96982929]
[1751724189311,0.5774156,2519.1,2519.0,3.96982929]
[1751724190541,0.20704485,2519.1,2519.0,5.06419813]
[1751724190830,0.20704485,2519.1,2519.0,5.10389642]
[1751724191726,0.20704485,2519.1,2519.0,5.06419813]
[1751724194331,0.20704485,2519.1,2519.0,12.14922929]
[1751724200141,0.57785632,2519.1,2519.0,12.14922929]
[1751724201314,0.20704485,2519.1,2519.0,12.90642929]
[1751724207637,0.0435421,2519.3,2519.2,3.96951413]
[1751724207839,0.41480759,2519.3,2519.2,14.85766785]
[1751724208134,0.41480759,2519.3,2519.2,15.01637271]
[1751724210140,0.0435421,2519.3,2519.2,15.01637271]
[1751724216055,1e-08,2519.3,2519.2,25.56637271]
[1751724217519,1e-08,2519.3,2519.2,17.58637271]
[1751724217715,1e-08,2519.3,2519.2,25.01537271]
[1751724221251,1e-08,2519.3,2519.2,25.01437271]
[1751724222550,1e-08,2519.3,2519.2,0.1984]
[1751724222726,0.754,2519.2,2519.1,3.9696717]
[1751724222927,0.754,2519.2,2519.1,7.98]
[1751724223436,0.754,2519.2,2519.0,3.96980323]
[1751724223632,0.754,2519.2,2519.1,7.981]
[1751724223967,0.754,2519.2,2519.1,11.9506717]
[1751724224132,0.754,2519.2,2519.1,7.981]
[1751724224871,0.754,2519.2,2519.1,11.9506717]
[1751724225564,1e-08,2519.3,2519.2,3.96951413]
[1751724227659,0.37093277,2519.3,2519.2,3.96951413]
[1751724228573,1e-08,2519.3,2519.2,3.96951413]
[1751724228877,1e-08,2519.3,2519.1,11.95058503]
[1751724229484,1e-08,2519.3,2519.2,3.96951413]
[1751724229690,0.37097601,2519.3,2519.2,3.96951413]
[1751724232158,0.37097601,2519.3,2519.1,7.981]
[1751724232471,1e-08,2519.3,2519.2,3.96951413]
[1751724232658,0.37102443,2519.3,2519.2,3.96951413]
[1751724233664,0.57807401,2519.3,2519.2,3.96951413]
[1751724236574,0.20704959,2519.3,2519.2,3.96951413]
[1751724236749,0.57806066,2519.3,2519.2,3.96951413]
[1751724238661,0.57803945,2519.3,2519.2,3.96951413]
[1751724239084,0.57804396,2519.3,2519.2,3.96951413]
[1751724241053,0.57801874,2519.3,2519.2,3.96951413]
[1751724245483,0.57801874,2519.3,2519.1,11.95058744]
[1751724245652,0.20704959,2519.3,2519.2,7.976]
[1751724245851,0.57800068,2519.3,2519.2,11.94551413]
[1751724249667,0.20704959,2519.3,2519.2,11.94551413]
[1751724249873,0.57820069,2519.3,2519.2,11.94551413]
[1751724258405,0.57820069,2519.3,2519.2,13.55687267]
[1751724258710,0.5788353,2519.3,2519.2,13.75527267]
[1751724258879,0.57883568,2519.3,2519.2,13.75527267]
[1751724261608,0.57886019,2519.3,2519.2,13.75527267]
[1751724264505,0.57887539,2519.3,2519.2,13.75527267]
[1751724265935,0.57887539,2519.3,2519.2,12.13991413]
[1751724276309,0.57887544,2519.3,2519.2,12.13991413]
[1751724277748,0.57987544,2519.3,2519.2,12.13991413]
[1751724279957,0.57987544,2519.3,2519.2,12.13791413]
[1751724282465,0.57987136,2519.3,2519.2,12.13791413]
[1751724285263,0.20804959,2519.3,2519.2,12.13791413]
[1751724285432,0.57987592,2519.3,2519.2,12.13791413]
[1751724285632,0.57987592,2519.3,2519.2,13.74887267]
[1751724286026,0.57987592,2519.3,2519.2,14.57017267]
[1751724288339,0.57988453,2519.3,2519.2,14.57017267]
[1751724291377,0.20804959,2519.3,2519.2,14.57017267]
[1751724291972,0.00100001,2519.3,2519.2,14.57017267]
[1751724296713,0.00100001,2519.3,2519.2,20.99486241]
[1751724299658,1e-08,2519.3,2519.2,21.54486241]
[1751724299860,1e-08,2519.3,2519.2,31.54486241]
[1751724320964,1e-08,2519.3,2519.2,33.47286241]
[1751724330988,1e-08,2519.3,2519.2,39.89755215]
[1751724331168,0.0445421,2519.8,2519.7,3.96872643]
[1751724331369,0.0445421,2519.8,2519.7,11.93672643]
[1751724331570,1e-08,2519.8,2519.7,25.55366341]
[1751724331784,1e-08,2519.8,2519.7,25.75206341]
[1751724334002,1e-08,2519.8,2519.7,27.68106341]
[1751724334205,1e-08,2519.8,2519.7,27.68006341]
[1751724334369,1e-08,2519.8,2519.7,27.68206341]
[1751724336000,1e-08,2519.8,2519.7,27.97974061]
[1751724342283,1e-08,2519.8,2519.7,36.80389675]
[1751724342612,1e-08,2519.8,2519.7,36.80289675]
[1751724346810,1e-08,2519.8,2519.7,26.90589675]
[1751724346986,1e-08,2519.8,2519.7,36.80289675]
[1751724351785,0.0635421,2520.3,2520.2,3.96793905]
[1751724352018,1e-08,2520.3,2520.2,22.88173296]
[1751724352315,1e-08,2520.3,2520.2,23.07933296]
[1751724360338,0.00100001,2520.3,2520.2,23.07933296]
[1751724368439,1e-08,2520.3,2520.2,23.07933296]
[1751724370637,1e-08,2520.3,2520.2,23.90423296]
[1751724374121,1e-08,2520.3,2520.2,17.04033296]
[1751724374437,1e-08,2520.3,2520.2,25.00533296]
[1751724375643,1e-08,2520.3,2520.2,15.11233296]
[1751724375843,1e-08,2520.3,2520.2,25.00533296]
[1751724376043,0.77310001,2520.3,2520.2,14.56233296]
[1751724376242,0.77310001,2520.3,2520.2,14.16553905]
[1751724376549,0.77310001,2520.3,2520.2,22.13053905]
[1751724386362,0.77310001,2520.3,2520.2,14.16553905]
[1751724386542,0.77310001,2520.3,2520.2,22.13153905]
[1751724387371,1e-08,2520.3,2520.2,24.74169961]
[1751724389174,1e-08,2520.3,2520.2,25.29169961]
[1751724393250,1e-08,2520.3,2520.2,16.77569961]
[1751724393569,1e-08,2520.3,2520.2,22.13153905]
[1751724395849,0.79740001,2520.3,2520.2,12.13153905]
[1751724401280,0.79740001,2520.3,2520.2,4.16553905]
[1751724401465,0.79740001,2520.3,2520.2,12.13153905]
[1751724409268,1e-08,2520.3,2520.2,12.13153905]
[1751724410691,1e-08,2520.3,2520.2,4.16553905]
[1751724410891,1e-08,2520.3,2520.2,12.13153905]
[1751724411098,0.77990001,2520.3,2520.2,12.13153905]
[1751724411262,0.77990001,2520.3,2520.2,4.16553905]
[1751724411591,0.77990001,2520.3,2520.2,12.13153905]
[1751724413362,0.77990001,2520.3,2520.2,11.93393905]
[1751724420888,0.77990001,2520.3,2520.1,0.2004]
[1751724421210,0.8193,2520.2,2520.1,3.9700965]
[1751724421381,1.19081943,2520.2,2520.1,11.9360965]
[1751724423007,0.37151943,2520.2,2520.1,11.9360965]
[1751724423609,0.46930658,2520.4,2520.2,3.96793905]
[1751724423819,0.46930658,2520.4,2520.3,7.966]
[1751724424020,1.42331259,2520.4,2520.3,7.966]
[1751724434351,1.42331259,2520.4,2520.1,3.97001535]
[1751724434561,0.03964966,2520.3,2520.2,7.967]
[1751724435055,0.03964966,2520.3,2520.2,11.93493905]
[1751724435422,0.03964966,2520.3,2520.2,7.967]
[1751724435623,0.41079181,2520.3,2520.2,7.967]
[1751724439467,0.41079181,2520.3,2520.2,11.93493905]
[1751724439668,0.37114215,2520.3,2520.2,11.93493905]
[1751724440234,0.37114215,2520.3,2520.2,7.967]
[1751724441566,0.37139152,2520.3,2520.2,7.967]
[1751724442339,0.37239152,2520.3,2520.2,7.967]
[1751724442870,0.41204118,2520.3,2520.2,7.967]
[1751724443065,0.41204118,2520.3,2520.1,0.002]
[1751724443239,0.54622722,2520.3,2520.2,7.967]
[1751724443538,0.91768644,2520.3,2520.2,7.967]
[1751724443973,9.74184258,2520.3,2520.1,0.002]
[1751724444271,15.09309827,2520.2,2520.1,0.002]
[1751724444437,18.12504175,2520.2,2520.1,0.002]
[1751724444946,18.33208068,2520.2,2520.1,0.002]
[1751724445351,26.29908068,2520.2,2520.1,0.002]
[1751724445890,4.72242643,2519.7,2519.6,0.002]
[1751724446091,14.82677402,2519.7,2519.6,0.002]
[1751724446380,14.78712436,2519.7,2519.6,0.002]
[1751724447102,10.81839793,2519.7,2519.6,0.002]
[1751724447446,14.78712436,2519.7,2519.6,0.002]
[1751724448772,10.81839793,2519.7,2519.6,0.002]
[1751724449148,14.78712436,2519.7,2519.6,0.002]
[1751724449569,10.81839793,2519.7,2519.6,0.002]
[1751724450392,10.81712562,2519.7,2519.6,0.002]
[1751724452870,1.99296948,2519.7,2519.6,0.002]
[1751724453102,1.12386755,2519.7,2519.6,0.002]
[1751724453433,0.36995164,2519.7,2519.6,0.002]
[1751724453594,0.4096013,2519.8,2519.6,0.002]
[1751724453793,0.36995164,2519.7,2519.6,0.002]
[1751724455237,0.4096013,2519.8,2519.6,0.002]
[1751724455411,1.998319,2519.8,2519.6,0.002]
[1751724455736,0.36995164,2519.7,2519.6,0.002]
[1751724459341,0.56835164,2519.7,2519.6,0.002]
[1751724460947,0.56835164,2519.7,2519.6,3.97088394]
[1751724463147,0.56820502,2519.7,2519.6,3.97088394]
[1751724463649,0.56820502,2519.7,2519.6,0.002]
[1751724466062,0.60785468,2519.7,2519.6,0.002]
[1751724466460,0.56820502,2519.7,2519.6,0.002]
[1751724470971,0.56877883,2519.7,2519.6,0.002]
[1751724475375,0.56877883,2519.7,2519.6,3.97088394]
[1751724475577,0.56877883,2519.7,2519.6,0.002]
[1751724477575,0.37037883,2519.7,2519.6,4.74388394]
[1751724477787,0.37037883,2519.7,2519.6,5.38876621]
[1751724477942,0.37037883,2519.7,2519.6,13.35876621]
[1751724479854,0.1984,2519.9,2519.8,3.96856893]
[1751724480172,0.04064966,2520.1,2520.0,3.96825396]
[1751724480173,0.1994,2520.1,2520.0,3.96825396]
[1751724480377,0.57071879,2520.1,2520.0,3.96825396]
[1751724481477,0.57071879,2520.1,2519.9,11.93934624]
[1751724481685,0.37131879,2520.0,2519.9,11.93934624]
[1751724481980,0.37131879,2520.0,2519.9,7.971]
[1751724482182,0.37131879,2520.0,2519.7,4.72106617]
[1751724482485,0.1994,2520.1,2519.8,11.93955267]
[1751724482680,0.41065425,2520.0,2519.8,11.93955267]
[1751724482855,0.1994,2520.1,2519.9,3.96841144]
[1751724483188,0.37099736,2520.0,2519.9,3.96841144]
[1751724486405,0.23904966,2520.1,2519.9,3.96841144]
[1751724488172,0.23904966,2520.1,2519.8,7.971]
[1751724488173,0.23904966,2520.1,2519.8,11.93948246]
[1751724490498,0.23904966,2520.1,2519.6,4.16914954]
[1751724490684,9.0632058,2520.1,2519.7,11.93869501]
[1751724490892,9.02355614,2520.1,2519.8,3.9685583]
[1751724491201,0.41023646,2520.0,2519.8,3.9685583]
[1751724491379,0.03964966,2520.0,2519.8,3.9685583]
[1751724493002,0.41021472,2520.0,2519.7,11.93864645]
[1751724493179,0.41021472,2520.0,2519.8,0.002]
[1751724493705,0.03964966,2520.0,2519.8,0.002]
[1751724493883,0.41022101,2520.0,2519.8,0.002]
[1751724494081,4.37851625,2520.0,2519.8,0.002]
[1751724494386,0.995,2519.9,2519.8,0.002]
[1751724494907,4.96341144,2519.9,2519.8,0.002]
[1751724495106,5.33394746,2519.9,2519.8,0.002]
[1751724495284,1.36553602,2519.9,2519.8,0.002]
[1751724496604,0.56893602,2519.9,2519.8,0.002]
[1751724496805,0.56897951,2519.9,2519.8,0.002]
[1751724497784,0.56900486,2519.9,2519.8,0.002]
[1751724498306,0.56900486,2519.9,2519.8,3.97056893]
[1751724498903,0.56900486,2519.9,2519.8,0.002]